bitfinex/quotes_ETHUSD_20250821
["timestamp","ask_amount","ask_price","bid_price","bid_amount"]
[1755764026512,0.0004,4319.0,4318.9,30.10966739]
[1755764029769,0.0004,4319.0,4318.9,12.27984116]
[1755764029927,0.0004,4319.0,4318.9,11.84074116]
[1755764030122,0.0004,4319.0,4318.9,12.28954116]
[1755764030515,0.0004,4319.0,4318.9,29.45936739]
[1755764031033,0.0004,4319.0,4318.9,30.11936739]
[1755764031246,0.0004,4319.0,4318.9,32.31877177]
[1755764031454,0.0004,4319.0,4318.9,32.43477177]
[1755764031740,0.002,4319.5,4319.4,2.31513636]
[1755764031940,0.002,4319.5,4319.4,30.53351395]
[1755764032145,0.002,4319.5,4319.4,31.07516259]
[1755764032353,0.002,4319.5,4319.4,28.76002623]
[1755764032972,0.002,4319.5,4319.4,28.85281623]
[1755764033264,0.002,4319.5,4319.4,31.21495586]
[1755764033967,0.002,4319.5,4319.4,27.66895586]
[1755764034267,0.002,4319.5,4319.4,31.87395586]
[1755764034666,0.0012,4319.5,4319.4,31.87395586]
[1755764037572,0.0012,4319.5,4319.4,34.18909222]
[1755764037986,0.0012,4319.5,4319.4,31.87395586]
[1755764040377,0.0012,4319.5,4319.4,22.23919957]
[1755764040690,0.0012,4319.5,4319.4,24.55433593]
[1755764043890,0.0012,4319.5,4319.4,18.69419957]
[1755764044193,0.0012,4319.5,4319.4,21.78739957]
[1755764044755,0.0012,4319.5,4319.4,18.24539957]
[1755764044994,0.1002,4319.5,4319.4,21.49799957]
[1755764045196,0.0012,4319.5,4319.4,21.49799957]
[1755764045355,0.0012,4319.5,4319.4,21.78739957]
[1755764045557,0.0012,4319.5,4319.4,22.23619957]
[1755764049087,0.0012,4319.5,4319.4,24.55133593]
[1755764050706,0.0012,4319.5,4319.4,22.23619957]
[1755764050907,0.0012,4319.5,4319.4,24.55133593]
[1755764051216,0.0012,4319.5,4319.4,22.23619957]
[1755764051593,0.0012,4319.5,4319.4,18.24539957]
[1755764051914,0.0012,4319.5,4319.4,22.23129957]
[1755764052279,0.1002,4319.5,4319.4,17.95599957]
[1755764052483,0.1002,4319.5,4319.4,21.49799957]
[1755764053092,0.0012,4319.5,4319.4,21.49799957]
[1755764053417,0.0012,4319.5,4319.4,22.25439957]
[1755764053615,0.0012,4319.5,4319.4,24.56953593]
[1755764054016,0.0012,4319.5,4319.4,21.81049957]
[1755764054385,0.0012,4319.5,4319.4,24.56953593]
[1755764055079,0.0012,4319.5,4319.4,22.25439957]
[1755764055616,0.0012,4319.5,4319.4,24.56953593]
[1755764058416,0.0004,4319.5,4319.4,24.56953593]
[1755764058616,0.0004,4319.5,4319.4,21.81049957]
[1755764058918,0.0004,4319.5,4319.4,17.95599957]
[1755764059221,0.0004,4319.5,4319.4,21.49799957]
[1755764059717,0.0004,4319.5,4319.4,23.81313593]
[1755764059891,0.0004,4319.5,4319.4,24.56953593]
[1755764060390,0.0004,4319.5,4319.4,21.81049957]
[1755764060705,0.0004,4319.5,4319.4,24.56953593]
[1755764062000,0.0004,4319.5,4319.4,22.25439957]
[1755764062208,0.0004,4319.5,4319.4,24.56953593]
[1755764062408,0.0004,4319.5,4319.4,21.49799957]
[1755764062922,0.0994,4319.5,4319.4,21.49799957]
[1755764063117,0.0004,4319.5,4319.4,21.49799957]
[1755764063493,0.1018,4319.5,4319.4,17.95599957]
[1755764063693,0.0004,4319.5,4319.4,21.49699957]
[1755764063890,0.0004,4319.5,4319.4,21.80949957]
[1755764064092,0.0004,4319.5,4319.4,21.49699957]
[1755764064309,0.0994,4319.5,4319.4,17.95599957]
[1755764064539,0.0994,4319.5,4319.4,21.49699957]
[1755764064846,0.0994,4319.5,4319.4,2.57092963]
[1755764065119,0.0994,4319.5,4319.4,11.28485994]
[1755764065120,0.4417,4319.5,4319.4,11.28485994]
[1755764065325,0.4417,4319.5,4319.4,0.09279]
[1755764065734,0.4417,4319.5,4319.4,3.63379]
[1755764066019,0.4417,4319.5,4319.4,3.541]
[1755764066577,0.4417,4319.5,4319.3,0.001]
[1755764066700,0.4417,4319.5,4319.3,3.542]
[1755764066894,0.3447,4319.4,4319.3,3.542]
[1755764071302,0.3481,4319.4,4319.3,3.542]
[1755764072405,0.3481,4319.4,4319.3,3.543]
[1755764075744,0.0034,4319.4,4319.3,3.543]
[1755764075941,0.3447,4319.4,4319.3,3.543]
[1755764077871,0.0034,4319.4,4319.3,3.543]
[1755764078640,0.0004,4319.5,4319.4,3.66]
[1755764078947,0.002,4319.7,4319.4,14.28975737]
[1755764079163,0.002,4319.7,4319.6,0.66]
[1755764079371,0.002,4319.7,4319.6,9.2955]
[1755764079525,0.002,4319.7,4319.6,11.86867746]
[1755764079871,0.002,4319.7,4319.6,11.96146946]
[1755764080174,0.002,4319.7,4319.6,19.4965394]
[1755764080864,0.002,4319.7,4319.6,21.9395394]
[1755764081155,0.002,4319.7,4319.6,19.4965394]
[1755764081847,0.002,4319.7,4319.6,11.96146946]
[1755764082153,0.002,4319.7,4319.6,19.4965394]
[1755764082336,0.0012,4319.7,4319.6,19.4965394]
[1755764082540,0.0012,4319.7,4319.6,8.41946946]
[1755764082835,0.0012,4319.7,4319.6,17.48326194]
[1755764083642,0.0012,4319.7,4319.6,9.948192]
[1755764083849,0.0012,4319.7,4319.6,8.531792]
[1755764084049,0.1002,4319.7,4319.6,8.531792]
[1755764084249,0.0012,4319.7,4319.6,8.531792]
[1755764084436,0.0012,4319.7,4319.6,9.3850712]
[1755764085249,0.0012,4319.7,4319.6,10.1466712]
[1755764085924,0.0012,4319.7,4319.6,10.6906712]
[1755764086144,0.0012,4319.7,4319.6,10.8066712]
[1755764087930,0.0012,4319.7,4319.6,5.8430712]
[1755764088135,0.0012,4319.7,4319.6,9.3850712]
[1755764088369,0.1002,4319.7,4319.6,5.8430712]
[1755764088588,0.1002,4319.7,4319.6,8.415792]
[1755764089678,0.0012,4319.7,4319.6,8.415792]
[1755764090529,0.1002,4319.7,4319.6,8.415792]
[1755764090848,0.1002,4319.7,4319.6,4.873792]
[1755764091172,0.1002,4319.7,4319.6,8.414792]
[1755764092227,0.1002,4319.7,4319.6,9.2563712]
[1755764092527,0.0012,4319.7,4319.6,10.0179712]
[1755764094961,0.0012,4319.7,4319.6,9.5616712]
[1755764095158,0.0012,4319.7,4319.6,9.2563712]
[1755764097634,0.0012,4319.7,4319.6,9.5616712]
[1755764097997,0.0012,4319.7,4319.6,9.2563712]
[1755764098199,0.0012,4319.7,4319.6,9.5616712]
[1755764099497,0.0012,4319.7,4319.6,6.0206712]
[1755764099664,0.0012,4319.7,4319.6,9.5616712]
[1755764100393,0.0012,4319.7,4319.6,10.0179712]
[1755764100826,0.0012,4319.7,4319.6,9.2563712]
[1755764101176,0.1002,4319.7,4319.6,5.7153712]
[1755764101378,0.4428,4319.7,4319.6,5.414792]
[1755764102020,0.4428,4319.7,4319.6,0.092792]
[1755764102314,0.4428,4319.7,4319.3,0.001]
[1755764102513,0.3426,4319.6,4319.4,3.541]
[1755764102717,0.4417,4319.5,4319.4,3.541]
[1755764106121,0.4409,4319.5,4319.4,3.541]
[1755764106426,0.1007,4319.5,4319.4,3.541]
[1755764106604,0.1007,4319.5,4319.4,3.9827]
[1755764106811,0.0012,4319.7,4319.4,3.9827]
[1755764107493,0.3133,4319.5,4319.4,3.9827]
[1755764107922,0.0012,4319.7,4319.4,5.14277]
[1755764108132,0.0012,4319.7,4319.5,0.47945082]
[1755764108315,0.0012,4319.7,4319.6,3.8463]
[1755764108502,0.0012,4319.7,4319.6,6.8463]
[1755764108703,0.0012,4319.7,4319.6,7.3026]
[1755764108935,0.0012,4319.7,4319.6,9.66473963]
[1755764109915,0.0012,4319.7,4319.6,7.3026]
[1755764111041,0.0012,4319.7,4319.6,6.8463]
[1755764111431,0.0012,4319.7,4319.6,7.2935]
[1755764112905,0.0012,4319.7,4319.6,9.167308]
[1755764114738,0.0012,4319.7,4319.6,8.414808]
[1755764115048,0.0994,4319.7,4319.6,10.06158175]
[1755764115250,0.0994,4319.7,4319.6,8.414808]
[1755764116243,0.0994,4319.7,4319.6,1.873808]
[1755764116452,0.0994,4319.7,4319.6,5.414808]
[1755764116762,0.0012,4319.7,4319.6,5.414808]
[1755764116945,0.0012,4319.7,4319.6,5.708008]
[1755764117108,0.0012,4319.7,4319.6,7.0261088]
[1755764117455,0.0012,4319.7,4319.6,6.2857088]
[1755764117602,0.0012,4319.7,4319.6,5.708008]
[1755764118044,0.0012,4319.7,4319.6,5.414808]
[1755764118538,0.0012,4319.7,4319.6,5.708008]
[1755764118711,0.0012,4319.7,4319.6,6.155208]
[1755764119219,0.0994,4319.7,4319.6,5.414808]
[1755764120406,0.0994,4319.7,4319.6,1.873808]
[1755764120730,0.0994,4319.7,4319.6,5.414808]
[1755764120930,0.0994,4319.7,4319.6,1.873808]
[1755764121137,0.0994,4319.7,4319.6,5.414808]
[1755764121335,0.0994,4319.7,4319.6,1.873808]
[1755764121520,0.0012,4319.7,4319.6,5.414808]
[1755764121723,0.0012,4319.7,4319.6,1.873808]
[1755764121922,0.0012,4319.7,4319.6,5.414808]
[1755764123097,0.0012,4319.7,4319.6,1.873808]
[1755764123098,0.1002,4319.7,4319.6,1.873808]
[1755764123345,0.1002,4319.7,4319.6,5.414808]
[1755764124526,0.1002,4319.7,4319.6,1.873808]
[1755764124849,0.1002,4319.7,4319.6,5.414808]
[1755764125654,0.4421,4319.7,4319.6,0.092808]
[1755764125835,7.97955952,4319.7,4319.6,0.092808]
[1755764126841,7.97955952,4319.7,4319.5,0.001]
[1755764127030,0.3403,4319.6,4319.5,0.001]
[1755764127347,0.4417,4319.6,4319.5,0.001]
[1755764129750,0.4409,4319.6,4319.5,0.001]
[1755764130751,0.1014,4319.6,4319.5,0.001]
[1755764131356,3.1014,4319.6,4319.5,0.001]
[1755764131949,3.4377,4319.6,4319.5,0.001]
[1755764132151,4.0977,4319.6,4319.5,0.001]
[1755764132314,4.22771766,4319.6,4319.5,0.001]
[1755764133141,4.0977,4319.6,4319.5,0.001]
[1755764134720,7.6387,4319.6,4319.5,0.001]
[1755764137657,3.1014,4319.6,4319.5,0.001]
[1755764137823,6.6424,4319.6,4319.5,0.001]
[1755764139048,6.9787,4319.6,4319.5,0.001]
[1755764140549,7.6387,4319.6,4319.5,0.001]
[1755764142623,0.66,4319.5,4319.1,0.001]
[1755764142821,8.30125952,4319.2,4319.1,0.001]
[1755764143181,8.30125952,4319.2,4318.0,0.001]
[1755764143182,33.66,4319.1,4318.0,0.001]
[1755764143322,8.30355952,4318.7,4318.0,0.001]
[1755764143522,14.84555952,4318.7,4318.0,0.001]
[1755764143722,15.17725952,4318.7,4318.0,0.001]
[1755764144123,3.66,4318.6,4318.0,0.001]
[1755764144440,0.66,4318.0,4317.9,0.001]
[1755764144648,4.5161,4318.0,4317.9,0.001]
[1755764145028,4.6419,4318.0,4317.9,0.001]
[1755764146231,7.6419,4318.0,4316.5,0.092895]
[1755764146435,3.66,4317.8,4316.5,0.4294]
[1755764146638,15.05355952,4317.8,4316.5,0.4294]
[1755764147159,15.18175952,4317.8,4316.5,0.4294]
[1755764148023,0.66,4317.6,4316.3,0.4294]
[1755764148223,9.2962,4317.6,4316.7,0.4294]
[1755764149642,8.984,4317.6,4317.5,0.2954]
[1755764149838,8.984,4317.6,4317.5,0.7248]
[1755764150062,9.083,4317.6,4317.5,0.001]
[1755764153385,5.442,4317.6,4317.5,0.001]
[1755764153686,12.86245952,4317.6,4317.5,0.7248]
[1755764153844,15.86245952,4317.6,4317.5,0.7248]
[1755764154865,12.31945952,4317.6,4317.5,0.7248]
[1755764155182,15.86245952,4317.6,4317.5,0.7248]
[1755764156142,4.782,4317.6,4317.5,0.7248]
[1755764156344,15.86245952,4317.6,4317.5,0.7248]
[1755764160195,15.86245952,4317.6,4317.5,0.001]
[1755764160572,15.86245952,4317.6,4317.5,0.7248]
[1755764161577,12.31945952,4317.6,4317.5,0.7248]
[1755764161778,15.86245952,4317.6,4317.5,0.7248]
[1755764162594,12.86245952,4317.6,4317.5,0.7248]
[1755764162896,7.53745952,4318.2,4317.5,0.7248]
[1755764163049,3.543,4318.1,4317.6,0.4294]
[1755764163250,3.543,4318.1,4318.0,0.2944]
[1755764163700,3.543,4318.1,4318.0,0.7238]
[1755764165109,5.57,4319.6,4318.0,0.7238]
[1755764165110,3.543,4318.6,4318.0,0.7238]
[1755764165402,3.543,4318.6,4318.1,0.4294]
[1755764165562,3.543,4318.7,4318.5,0.2944]
[1755764165770,11.08045952,4318.7,4318.6,0.4294]
[1755764165971,11.08045952,4318.7,4318.6,0.7238]
[1755764166173,11.08045952,4318.7,4318.6,0.2944]
[1755764166496,20.71190756,4318.7,4318.5,0.4294]
[1755764166685,20.71190756,4318.7,4318.6,0.2944]
[1755764167090,20.71190756,4318.7,4318.2,0.8588]
[1755764167292,20.71190756,4318.7,4318.2,0.4294]
[1755764167494,20.71190756,4318.7,4318.6,0.2944]
[1755764167672,20.71190756,4318.7,4318.6,0.7238]
[1755764168093,20.71190756,4318.7,4318.6,0.2944]
[1755764168299,20.71190756,4318.7,4318.3,0.4294]
[1755764168483,20.71190756,4318.7,4318.0,0.4294]
[1755764168684,20.71190756,4318.7,4318.1,0.4294]
[1755764168890,20.71190756,4318.7,4318.2,0.4294]
[1755764169081,20.71190756,4318.7,4318.3,0.4294]
[1755764170400,20.71190756,4318.7,4317.9,0.4294]
[1755764170702,17.16890756,4318.7,4318.6,0.2944]
[1755764170909,20.71090756,4318.7,4318.6,0.2944]
[1755764171204,17.16890756,4318.7,4318.6,0.2944]
[1755764171401,20.71090756,4318.7,4318.6,0.7229]
[1755764172203,17.16890756,4318.7,4318.6,0.7229]
[1755764172508,20.71090756,4318.7,4318.6,0.7229]
[1755764173682,20.71090756,4318.7,4318.1,0.4294]
[1755764174080,20.71090756,4318.7,4318.1,0.8579]
[1755764175697,17.26790756,4318.2,4317.5,0.001]
[1755764175903,17.16890756,4317.6,4317.5,0.001]
[1755764176103,20.70990756,4317.6,4317.5,0.001]
[1755764176616,20.70990756,4317.6,4317.5,0.7443]
[1755764177687,20.70910756,4317.6,4317.5,0.3158]
[1755764177909,20.70910756,4317.6,4317.5,0.001]
[1755764178413,20.80810756,4317.6,4317.5,0.001]
[1755764178591,20.70910756,4317.6,4317.5,0.001]
[1755764178913,20.70910756,4317.6,4317.5,0.7443]
[1755764180315,20.70910756,4317.6,4317.5,0.001]
[1755764180619,20.70910756,4317.6,4317.5,0.7443]
[1755764181939,20.70910756,4317.6,4317.5,0.3158]
[1755764182135,20.80810756,4317.6,4317.5,0.001]
[1755764182431,20.70910756,4317.6,4317.5,0.3158]
[1755764182937,20.70910756,4317.6,4317.5,0.001]
[1755764183143,20.80810756,4317.6,4317.5,0.001]
[1755764183432,24.80920756,4317.6,4317.5,0.001]
[1755764184746,24.46810756,4317.6,4317.5,0.001]
[1755764184921,6.541,4317.6,4317.5,0.3158]
[1755764185232,6.8414,4317.6,4317.5,0.001]
[1755764185808,3.3004,4317.6,4317.5,0.001]
[1755764186004,6.8414,4317.6,4317.5,0.001]
[1755764186335,14.1905854,4317.6,4317.5,0.001]
[1755764186923,14.0915854,4317.6,4317.5,0.001]
[1755764187330,3.0,4317.6,4317.5,0.7443]
[1755764187627,6.542,4317.6,4317.5,0.7443]
[1755764190292,6.542,4317.6,4317.5,0.001]
[1755764191186,6.542,4317.6,4317.5,0.7443]
[1755764192405,6.5434,4317.6,4317.5,0.001]
[1755764197565,7.2034,4317.6,4317.5,0.001]
[1755764197875,7.5469,4317.6,4317.5,0.001]
[1755764198158,7.2034,4317.6,4317.5,0.001]
[1755764198315,3.6614,4317.6,4317.5,0.001]
[1755764198744,7.2024,4317.6,4317.5,0.001]
[1755764199660,7.5459,4317.6,4317.5,0.001]
[1755764199860,7.67599507,4317.6,4317.5,0.001]
[1755764200219,8.17560866,4317.6,4317.5,0.001]
[1755764200414,8.39245489,4317.6,4317.5,0.001]
[1755764200932,8.39165489,4317.6,4317.5,0.001]
[1755764202545,7.33269507,4317.6,4317.5,0.001]
[1755764203149,7.83250064,4317.6,4317.5,0.001]
[1755764204159,8.04948714,4317.6,4317.5,0.001]
[1755764204954,7.17250064,4317.6,4317.5,0.001]
[1755764205261,8.04963704,4317.6,4317.5,0.001]
[1755764205563,8.04970766,4317.6,4317.5,0.001]
[1755764206722,8.39320766,4317.6,4317.5,0.001]
[1755764206928,33.96351937,4317.5,4317.0,0.001]
[1755764207254,3.0,4317.0,4316.6,0.001]
[1755764207432,21.14521156,4316.7,4316.6,0.001]
[1755764207758,55.53331922,4316.7,4316.6,0.001]
[1755764208172,55.66461922,4316.7,4316.6,0.001]
[1755764208352,46.04788708,4316.7,4316.6,0.001]
[1755764208533,11.21783841,4315.9,4315.5,0.4435]
[1755764208732,16.54083841,4315.9,4315.5,0.4435]
[1755764209249,16.54083841,4315.9,4313.4,0.116]
[1755764209250,3.66,4315.8,4314.1,0.17715479]
[1755764209447,0.66,4315.5,4314.9,0.4435]
[1755764209651,3.66,4315.3,4314.9,0.4435]
[1755764209848,0.66,4315.3,4315.2,0.3144]
[1755764210162,4.201,4315.3,4315.2,0.3144]
[1755764210363,3.66,4315.2,4314.7,0.4435]
[1755764210666,10.86873841,4314.9,4314.4,0.4435]
[1755764210838,14.09883841,4314.9,4314.4,0.4435]
[1755764211044,14.09883841,4314.9,4313.2,0.17623443]
[1755764211045,14.09883841,4314.9,4314.8,0.7779]
[1755764211756,14.09883841,4314.9,4314.8,0.3344]
[1755764212263,14.09883841,4314.9,4314.8,0.02]
[1755764212438,14.75983841,4314.9,4314.8,0.02]
[1755764212639,0.66,4314.7,4313.7,0.887]
[1755764212940,7.55783841,4313.9,4313.7,0.4435]
[1755764213135,7.55783841,4313.9,4311.8,0.02]
[1755764213136,11.09983841,4313.9,4313.8,0.3344]
[1755764213536,11.09983841,4313.9,4313.8,0.7779]
[1755764213749,7.55783841,4313.9,4313.8,0.7779]
[1755764213957,3.542,4313.9,4313.8,0.7779]
[1755764215943,1.783,4314.1,4313.8,0.7779]
[1755764216265,3.542,4314.0,4313.9,0.4435]
[1755764216466,3.542,4314.1,4314.0,0.3144]
[1755764216767,1.783,4314.8,4314.0,0.7579]
[1755764216942,3.0,4314.6,4314.0,0.3144]
[1755764217147,3.0,4314.4,4314.1,0.4435]
[1755764217360,3.0,4314.4,4314.3,0.3144]
[1755764217748,3.0,4314.4,4314.3,0.7579]
[1755764217961,6.543,4314.4,4314.3,0.7579]
[1755764219877,3.0,4314.4,4314.3,0.7579]
[1755764220043,9.34083841,4314.8,4314.3,0.7579]
[1755764220044,3.542,4314.6,4314.3,0.7579]
[1755764220240,1.783,4315.6,4314.3,0.7579]
[1755764220580,0.02,4315.8,4314.3,0.7579]
[1755764220581,0.02,4315.8,4314.5,7.55783841]
[1755764220738,0.02,4315.8,4315.7,0.3144]
[1755764220936,0.02,4315.8,4315.7,0.7579]
[1755764221187,7.57783841,4315.8,4315.7,0.7579]
[1755764221775,11.12083841,4315.8,4315.3,0.4435]
[1755764221951,7.55783841,4315.5,4314.7,0.4435]
[1755764222157,3.543,4315.4,4315.3,0.4435]
[1755764222355,3.543,4315.4,4314.8,0.4435]
[1755764222558,3.543,4315.4,4315.3,0.3144]
[1755764222839,3.543,4315.4,4315.3,0.7579]
[1755764223180,3.542,4315.4,4315.3,0.7579]
[1755764225276,3.5412,4315.4,4315.3,0.7579]
[1755764225978,0.04,4315.8,4315.3,0.7579]
[1755764226172,3.542,4315.7,4315.4,0.4435]
[1755764226382,6.542,4315.7,4315.6,0.3144]
[1755764226584,3.0,4315.7,4315.6,0.7579]
[1755764226943,3.582,4315.8,4315.6,0.7579]
[1755764227151,0.04,4315.8,4315.6,0.7579]
[1755764227465,0.04,4315.8,4315.7,0.4435]
[1755764227663,0.04,4315.8,4315.7,0.7579]
[1755764227961,0.02,4315.8,4315.7,0.7579]
[1755764233103,0.02,4315.8,4315.7,0.7537]
[1755764236294,0.02,4315.8,4315.7,0.3144]
[1755764236630,0.02,4315.8,4315.7,0.7537]
[1755764240994,0.02,4315.8,4315.7,0.3144]
[1755764241210,0.02,4315.8,4315.7,0.7537]
[1755764241732,0.02,4315.8,4315.2,0.61139906]
[1755764241930,0.021,4315.8,4315.2,0.4393]
[1755764243037,17.19381228,4315.7,4314.9,0.4403]
[1755764243237,3.541,4315.6,4314.9,0.4403]
[1755764244435,7.55707594,4315.4,4314.9,0.4403]
[1755764245002,7.55707594,4315.4,4314.9,0.001]
[1755764245937,7.55707594,4315.0,4314.9,0.001]
[1755764246409,7.55707594,4315.0,4314.9,0.2989]
[1755764246912,14.40497594,4315.0,4314.9,0.001]
[1755764248203,16.18797594,4315.0,4314.9,0.001]
[1755764248438,16.18717594,4315.0,4314.9,0.001]
[1755764248766,16.18797594,4315.0,4314.9,0.001]
[1755764248972,16.84797594,4315.0,4314.9,0.001]
[1755764251342,3.66,4314.9,4314.0,0.001]
[1755764251547,10.86397594,4314.1,4314.0,0.001]
[1755764251761,16.84797594,4314.1,4314.0,0.001]
[1755764251958,16.98317594,4314.1,4314.0,0.001]
[1755764252684,46.98317594,4314.1,4313.9,0.001]
[1755764252856,33.7952,4314.0,4313.2,0.001]
[1755764253179,11.52227594,4313.3,4313.2,0.001]
[1755764253482,16.84727594,4313.3,4313.2,0.001]
[1755764254345,26.50448567,4313.3,4313.2,0.001]
[1755764257186,26.50448567,4313.3,4313.2,0.2989]
[1755764257187,4.783,4313.3,4313.2,0.2989]
[1755764257391,8.424,4313.3,4313.2,0.001]
[1755764257956,8.325,4313.3,4313.2,0.2989]
[1755764258489,8.326,4313.3,4313.2,0.7382]
[1755764258699,4.783,4313.3,4313.2,0.7382]
[1755764258870,0.3435,4315.2,4313.2,0.7382]
[1755764258871,1.784,4314.0,4313.2,0.7382]
[1755764259071,17.21428567,4314.5,4313.2,0.7382]
[1755764259072,3.543,4313.9,4313.2,0.001]
[1755764259290,3.0,4313.5,4313.2,0.001]
[1755764259607,3.543,4313.4,4313.2,0.001]
[1755764260677,3.099,4313.3,4313.2,0.001]
[1755764261001,0.099,4313.3,4313.2,0.001]
[1755764261504,3.543,4313.4,4313.2,0.001]
[1755764261706,17.21428567,4313.6,4313.2,0.001]
[1755764261707,0.66,4313.5,4313.2,0.2952]
[1755764262000,3.543,4313.4,4313.3,0.4639]
[1755764262214,3.543,4313.4,4313.3,0.7581]
[1755764262573,3.543,4313.4,4313.3,0.2942]
[1755764262801,3.543,4313.4,4313.2,0.001]
[1755764262985,3.543,4313.4,4313.3,0.2942]
[1755764263306,20.75728567,4313.4,4313.3,0.2942]
[1755764263907,20.75728567,4313.4,4313.2,0.001]
[1755764264574,0.097,4313.3,4313.2,0.001]
[1755764265199,3.757,4313.3,4313.2,0.001]
[1755764266323,3.0,4313.3,4313.2,0.2952]
[1755764266515,6.543,4313.3,4313.2,0.7591]
[1755764267645,17.21428567,4313.8,4313.2,0.7591]
[1755764267823,1.784,4313.9,4313.3,0.4639]
[1755764268125,3.543,4313.8,4313.3,0.4639]
[1755764268426,3.543,4313.8,4313.7,0.2942]
[1755764268723,3.543,4313.8,4313.7,0.7581]
[1755764272425,3.5422,4313.8,4313.7,0.7581]
[1755764272827,3.543,4314.0,4313.7,0.7581]
[1755764273199,3.543,4314.0,4313.8,0.4639]
[1755764273399,6.543,4314.0,4313.9,0.2942]
[1755764274455,6.543,4314.0,4313.9,0.7581]
[1755764278682,6.543,4314.0,4313.9,0.2942]
[1755764278883,6.543,4314.0,4313.6,0.4639]
[1755764279057,6.543,4314.0,4313.2,0.001]
[1755764279256,6.543,4314.0,4313.3,0.4639]
[1755764280163,6.543,4314.0,4313.9,0.2942]
[1755764280357,14.10509418,4314.0,4313.9,0.2942]
[1755764282490,14.20409418,4314.0,4313.2,0.001]
[1755764282705,7.56209418,4313.4,4313.2,0.001]
[1755764282987,3.6445,4313.3,4313.2,0.001]
[1755764283460,3.543,4313.3,4313.2,0.001]
[1755764283661,3.543,4313.3,4313.2,0.2952]
[1755764284191,3.543,4313.3,4313.2,0.001]
[1755764284983,3.543,4313.3,4313.2,0.7591]
[1755764285555,3.542,4313.6,4313.2,0.7591]
[1755764285787,1.784,4313.8,4313.3,0.4639]
[1755764285984,3.0,4314.4,4313.3,0.4639]
[1755764285985,3.0,4314.4,4313.7,0.2942]
[1755764286183,3.542,4314.3,4313.7,0.2942]
[1755764286355,3.542,4314.3,4313.8,0.4639]
[1755764287178,3.542,4314.3,4313.2,0.001]
[1755764287389,3.542,4314.3,4313.9,0.4639]
[1755764287689,3.542,4314.3,4313.2,0.001]
[1755764287690,3.542,4314.3,4314.0,0.4639]
[1755764289595,3.542,4314.3,4313.7,0.4639]
[1755764291101,3.542,4314.3,4313.8,0.001]
[1755764291282,3.544,4314.3,4313.8,0.001]
[1755764291498,3.544,4314.3,4313.8,0.4451]
[1755764293698,3.544,4314.3,4313.8,0.001]
[1755764295200,3.0,4314.0,4313.8,0.001]
[1755764295413,3.542,4313.9,4313.8,0.001]
[1755764296087,3.5412,4313.9,4313.8,0.001]
[1755764296669,3.6402,4313.9,4313.8,0.001]
[1755764297584,3.5412,4313.9,4313.8,0.001]
[1755764298594,3.5412,4313.9,4313.8,0.3082]
[1755764300971,3.5412,4313.9,4313.8,0.001]
[1755764302203,3.5412,4313.9,4313.8,0.3082]
[1755764302503,3.5412,4313.9,4313.8,0.001]
[1755764302674,3.6402,4313.9,4313.8,0.001]
[1755764303700,6.9813,4313.9,4313.8,0.001]
[1755764304687,7.11186797,4313.9,4313.8,0.001]
[1755764305493,8.27320377,4313.9,4313.8,0.001]
[1755764305668,8.49076628,4313.9,4313.8,0.001]
[1755764305872,8.49076628,4313.9,4313.2,0.001]
[1755764305873,8.36019667,4313.9,4313.2,0.001]
[1755764306182,20.86956161,4313.3,4313.2,0.001]
[1755764306395,16.55424918,4313.3,4313.2,0.001]
[1755764306567,17.84571488,4313.3,4313.2,0.001]
[1755764306766,17.84571488,4313.3,4312.8,0.02]
[1755764306767,3.66,4313.2,4312.8,0.02]
[1755764306994,11.51684918,4312.9,4312.8,0.02]
[1755764307190,15.69037038,4312.9,4312.8,0.02]
[1755764307503,15.34271387,4312.9,4312.8,0.02]
[1755764308202,12.34271387,4312.9,4312.8,0.02]
[1755764308780,12.21224918,4312.9,4312.8,0.02]
[1755764309192,12.34251123,4312.9,4312.8,0.02]
[1755764309394,12.21224918,4312.9,4312.8,0.02]
[1755764310098,15.21224918,4312.9,4312.8,0.02]
[1755764310297,3.66,4312.8,4311.8,0.02]
[1755764310599,7.56824918,4311.9,4311.8,0.02]
[1755764310776,12.89424918,4311.9,4311.8,0.3272]
[1755764310972,12.89424918,4311.9,4311.8,0.7713]
[1755764311481,9.35224918,4311.9,4311.8,0.7713]
[1755764311819,12.89424918,4311.9,4311.8,0.7713]
[1755764312303,12.89424918,4311.9,4311.8,0.02]
[1755764312685,16.65324918,4311.9,4311.8,0.02]
[1755764314112,3.0,4311.1,4310.9,0.001]
[1755764314277,8.986,4311.0,4310.9,0.001]
[1755764314613,9.0874,4311.0,4310.9,0.001]
[1755764316300,3.66,4310.9,4310.8,0.02]
[1755764316487,3.9486,4310.9,4310.8,0.02]
[1755764317122,0.66,4310.8,4309.4,0.4441]
[1755764317278,3.0,4309.9,4309.7,0.4441]
[1755764317483,6.543,4309.9,4309.8,0.3272]
[1755764317809,7.302,4309.9,4309.8,0.02]
[1755764318346,24.54705875,4309.9,4309.8,0.02]
[1755764318479,24.88815875,4309.9,4309.8,0.02]
[1755764319123,24.54705875,4309.9,4309.8,0.02]
[1755764319424,24.88815875,4309.9,4309.8,0.02]
[1755764319796,24.88735875,4309.9,4309.8,0.02]